bitfinex/quotes_ETHUSD_20250107
["timestamp","ask_amount","ask_price","bid_price","bid_amount"]
[1736272231483,0.02874761,3442.0,3441.0,2.93517903]
[1736272231652,0.02874761,3442.0,3440.7,1.6294]
[1736272231852,0.04989658,3441.9,3441.4,0.0075]
[1736272232059,0.02874761,3442.4,3441.4,0.0075]
[1736272232263,0.0522053,3441.8,3441.4,2.91327]
[1736272232466,0.02874761,3442.4,3441.4,2.91327]
[1736272232796,0.0522053,3442.3,3441.6,0.0075]
[1736272233096,0.0522053,3442.3,3441.7,0.0075]
[1736272233300,0.0522053,3442.3,3442.0,0.0075]
[1736272233471,3.5655831,3443.6,3442.0,0.0075]
[1736272233472,1.56324761,3443.1,3442.2,0.0075]
[1736272233672,1.56324761,3443.1,3442.2,2.9126]
[1736272234005,1.67583071,3443.6,3442.4,0.0075]
[1736272234303,0.05017747,3443.5,3442.4,0.0075]
[1736272234465,0.05017747,3443.5,3442.6,0.0075]
[1736272234662,1.67583071,3443.6,3442.6,2.941312]
[1736272234898,1.67583071,3443.6,3442.6,2.91227]
[1736272235070,0.05017747,3443.5,3442.3,0.0075]
[1736272235270,0.02874761,3443.4,3442.3,0.0075]
[1736272235467,0.02874761,3443.4,3442.6,0.0075]
[1736272235716,0.02874761,3443.5,3442.6,0.0075]
[1736272235854,0.05017747,3443.3,3442.6,0.0075]
[1736272236054,2.90436,3443.1,3441.8,2.90544]
[1736272236255,0.02874761,3443.0,3441.5,2.90563]
[1736272236451,2.9042,3443.3,3442.0,2.90527]
[1736272236672,0.02874761,3443.2,3442.2,0.0075]
[1736272236960,2.90437,3443.1,3442.4,0.0075]
[1736272237190,0.07892508,3443.0,3441.2,1.5208]
[1736272237356,2.93323761,3443.0,3441.6,2.90561]
[1736272237554,0.05017747,3442.9,3441.6,2.90561]
[1736272238196,0.05017747,3442.9,3441.7,2.91303]
[1736272240503,0.05017747,3442.9,3441.9,0.0075]
[1736272240712,0.05017747,3442.9,3442.8,0.0075]
[1736272240880,0.05017747,3442.9,3442.8,2.94115461]
[1736272241078,0.1125831,3443.6,3443.2,2.90426]
[1736272241295,0.1125831,3443.6,3443.5,0.0075]
[1736272241638,0.16257914,3443.6,3443.5,0.0075]
[1736272242473,0.03160618,3443.6,3443.5,0.0075]
[1736272242677,0.04999604,3443.6,3443.5,0.0075]
[1736272242935,2.95392604,3443.6,3443.5,0.0075]
[1736272243245,0.02874761,3443.6,3442.0,2.90522]
[1736272243521,2.90455,3442.9,3441.7,2.90552]
[1736272243776,2.93338761,3442.8,3441.7,2.90552]
[1736272243923,2.93338761,3442.8,3441.8,2.90545]
[1736272243924,2.98277066,3442.8,3441.8,2.90545]
[1736272244126,0.0075,3442.7,3441.9,0.02905199]
[1736272244315,0.0075,3442.7,3441.8,2.90545]
[1736272244516,0.0075,3442.5,3441.9,0.0290508]
[1736272244717,0.0075,3442.5,3442.0,0.0075]
[1736272245741,2.90452,3442.9,3441.7,0.0075]
[1736272246057,0.0075,3442.7,3441.7,0.0075]
[1736272246571,0.04938305,3442.6,3442.1,0.0075]
[1736272246874,2.90416,3443.4,3442.1,0.0075]
[1736272246875,0.02874761,3443.1,3442.1,2.90512]
[1736272247028,0.02874761,3443.1,3441.3,3.10324]
[1736272247029,0.0075,3442.4,3441.8,2.90537]
[1736272247223,0.0075,3442.4,3442.0,0.0075]
[1736272247462,0.0075,3442.2,3442.1,2.9127]
[1736272248031,0.0075,3443.2,3442.3,0.0075]
[1736272248433,0.0075,3443.0,3442.3,0.0075]
[1736272248634,0.03624761,3443.0,3442.3,0.0075]
[1736272248832,0.0075,3442.8,3442.3,0.0075]
[1736272249032,0.03624761,3442.8,3442.3,0.0075]
[1736272249345,0.0075,3442.6,3442.3,0.0075]
[1736272249960,1.6652,3443.5,3442.9,2.90449]
[1736272249961,0.02874761,3443.4,3442.9,2.90449]
[1736272250183,0.04948826,3443.3,3442.4,1.5636]
[1736272250389,0.0075,3443.3,3442.6,2.90476]
[1736272250684,0.0075,3443.1,3442.7,0.0075]
[1736272250881,0.0075,3443.1,3442.7,2.90467]
[1736272251064,0.0075,3443.1,3442.8,0.0075]
[1736272251378,0.0075,3443.3,3442.8,0.0075]
[1736272251743,0.0075,3443.1,3442.8,0.0075]
[1736272252075,0.03624761,3443.1,3442.3,2.90499]
[1736272252235,0.03624761,3443.1,3442.0,0.02904913]
[1736272252430,0.0075,3442.9,3442.2,3.0]
[1736272252666,0.03624761,3442.9,3442.2,2.90511]
[1736272253046,0.0075,3442.7,3442.3,0.0075]
[1736272253485,0.0075,3443.0,3442.3,0.0075]
[1736272253773,0.04959965,3442.9,3442.3,0.0075]
[1736272253974,0.04959965,3442.9,3441.9,1.5636]
[1736272253975,0.0075,3443.3,3442.5,2.90482]
[1736272254143,0.0075,3443.1,3442.2,3.0]
[1736272254350,0.0075,3443.1,3442.2,2.90503]
[1736272254551,0.04959965,3443.0,3442.2,2.90503]
[1736272254750,0.04959965,3443.0,3442.0,0.57904854]
[1736272254751,0.0075,3442.9,3442.0,0.57904854]
[1736272254986,0.0075,3442.9,3442.8,2.90461]
[1736272255294,0.0075,3443.3,3442.8,2.90461]
[1736272255429,0.0075,3443.3,3442.2,2.90511]
[1736272255633,0.0075,3443.1,3442.7,2.91216]
[1736272256991,0.0075,3443.3,3442.9,0.0075]
[1736272257695,0.02874761,3444.0,3443.2,2.91175]
[1736272258035,0.05604143,3443.7,3443.2,2.91175]
[1736272258266,0.05604143,3443.7,3443.0,4.5705]
[1736272258475,0.05604143,3443.7,3443.4,0.0075]
[1736272258783,0.0075,3443.7,3443.4,0.0075]
[1736272259131,0.0075,3443.7,3443.3,2.90411]
[1736272259132,0.0075,3443.7,3443.5,0.0075]
[1736272259495,0.0075,3443.7,3443.6,2.91143]
[1736272259853,0.0075,3443.7,3443.1,0.75115607]
[1736272260039,0.0075,3443.7,3443.2,0.0290392]
[1736272260237,0.0075,3443.7,3443.5,2.90398]
[1736272260433,0.0075,3443.7,3443.6,35.0]
[1736272260884,0.0075,3443.7,3443.6,37.90393]
[1736272261050,0.0075,3443.7,3443.6,35.0]
[1736272261243,0.0075,3443.7,3442.9,2.90449]
[1736272261439,0.03624761,3443.7,3442.9,2.90449]
[1736272261684,0.04854143,3443.6,3443.0,2.90444]
[1736272261887,0.1288,3443.8,3443.4,2.90408]
[1736272262050,0.1288,3443.8,3443.1,0.0075]
[1736272262383,0.1288,3443.8,3443.5,2.90401]
[1736272262952,1e-05,3443.8,3443.7,4.42465]
[1736272263167,1.5061,3445.3,3443.9,0.55]
[1736272263387,1.5061,3445.3,3444.9,0.0075]
[1736272263897,0.03624761,3445.2,3444.4,2.90325]
[1736272264106,0.03624761,3445.2,3443.7,1.5133]
[1736272264253,2.90267,3445.1,3443.7,3.0]
[1736272264600,0.02874761,3445.0,3444.1,2.90351]
[1736272264904,0.02874761,3445.0,3444.3,2.9108]
[1736272264905,0.04966803,3444.9,3444.3,2.9108]
[1736272265047,0.04966803,3444.9,3444.5,0.0075]
[1736272265250,0.04966803,3444.9,3444.8,2.91042]
[1736272265463,1.5061,3445.3,3444.8,2.90289]
[1736272265715,0.0075,3445.1,3444.5,2.9031]
[1736272265851,0.0075,3445.1,3444.3,2.90333]
[1736272266263,0.0075,3444.9,3444.4,3.0075]
[1736272266465,0.03624761,3444.9,3444.4,0.0075]
[1736272266665,1.5623,3444.7,3443.0,1.17640986]
[1736272267017,1.5198,3443.8,3443.0,1.17640986]
[1736272267317,2.90413,3443.4,3443.0,1.17640986]
[1736272267475,0.0075,3443.2,3443.0,1.17640986]
[1736272267682,0.0075,3443.2,3442.2,1.17640986]
[1736272267992,0.0075,3442.6,3442.2,1.17640986]
[1736272268196,0.04977323,3442.5,3442.2,1.17640986]
[1736272268514,2.91253,3442.3,3442.2,1.17640986]
[1736272268813,5.03694851,3442.3,3442.2,1.17640986]
[1736272269216,5.03694851,3442.3,3440.5,36.17640986]
[1736272269217,0.0075,3442.2,3440.5,36.17640986]
[1736272269426,0.0075,3442.2,3440.6,3.0]
[1736272269427,0.0075,3442.0,3440.6,3.0]
[1736272269719,0.03624761,3442.0,3440.6,3.0]
[1736272269900,0.0075,3442.0,3440.7,3.80934995]
[1736272270120,0.02874761,3442.2,3441.2,2.90594]
[1736272270411,0.0075,3442.1,3441.3,0.02905745]
[1736272270614,0.0075,3442.1,3441.6,0.0075]
[1736272270829,0.04368756,3442.0,3441.6,0.0075]
[1736272271034,0.02874761,3442.2,3441.6,0.0075]
[1736272271240,0.02874761,3442.2,3441.6,2.91311]
[1736272271386,1.5261,3442.3,3442.1,0.0075]
[1736272271586,0.0075,3442.8,3442.1,0.0075]
[1736272271822,0.04389236,3442.7,3442.2,35.0]
[1736272272128,0.0075,3442.6,3442.2,35.0]
[1736272272438,0.0075,3442.6,3442.3,0.0075]
[1736272272727,0.0075,3442.7,3442.3,0.0075]
[1736272272933,0.0075,3442.7,3441.8,3.0]
[1736272273111,0.02874761,3442.8,3441.9,2.90535]
[1736272273112,0.0075,3442.5,3441.9,2.90535]
[1736272273427,0.04410332,3442.4,3442.3,0.0075]
[1736272273729,0.0075,3442.7,3442.3,0.0075]
[1736272273953,0.0075,3442.7,3442.6,0.0075]
[1736272274250,0.02874761,3442.8,3442.1,3.0]
[1736272274552,1.5858,3443.4,3441.2,2.90589]
[1736272274553,0.0075,3442.7,3441.2,2.90589]
[1736272274750,0.05162814,3442.7,3442.0,2.90527]
[1736272274900,0.02874761,3443.1,3442.1,35.0075]
[1736272275243,0.0075,3442.5,3442.1,37.91267]
[1736272275617,0.0075,3443.0,3442.1,37.91267]
[1736272276016,0.0075,3443.2,3442.1,35.0]
[1736272276219,0.0075,3443.2,3441.3,1.17640986]
[1736272276220,0.5575,3442.5,3441.3,1.17640986]
[1736272276512,0.02874761,3443.1,3441.3,1.17640986]
[1736272276513,0.5575,3442.1,3441.3,1.17640986]
[1736272276716,2.91329,3441.4,3441.3,1.17640986]
[1736272276947,0.0075,3441.4,3441.3,1.17640986]
[1736272277300,0.04414054,3441.4,3441.0,1.17640986]
[1736272277512,2.90531,3442.0,3441.0,1.17640986]
[1736272277732,0.02874761,3441.9,3441.1,0.02906069]
[1736272277941,0.04365652,3441.9,3441.4,0.0075]
[1736272278262,0.02874761,3442.7,3441.1,2.90604]
[1736272278471,0.02874761,3442.7,3441.5,35.0]
[1736272278619,0.05115652,3442.6,3441.7,2.90548]
[1736272278815,0.0075,3442.4,3441.8,0.0075]
[1736272279219,0.0075,3442.6,3441.7,0.0075]
[1736272279620,0.0075,3442.4,3441.7,0.0075]
[1736272279827,0.03624761,3442.4,3441.6,3.0]
[1736272280038,2.91245,3442.4,3441.3,2.9058]
[1736272280263,0.0075,3442.0,3441.1,2.90603]
[1736272280459,0.0075,3442.0,3441.3,0.0075]
[1736272280672,0.0075,3442.0,3441.6,2.90561]
[1736272280970,1.502,3442.9,3441.6,2.90561]
[1736272280971,0.0075,3441.8,3441.6,2.90561]
[1736272281448,0.02874761,3442.8,3441.7,37.93459443]
[1736272281648,0.02874761,3442.8,3441.7,37.90554]
[1736272281819,0.02874761,3442.8,3441.9,0.0075]
[1736272282174,0.02874761,3442.8,3441.7,3.0]
[1736272282318,2.93338761,3442.8,3441.7,2.90547]
[1736272282517,2.91232,3442.6,3441.8,35.0]
[1736272282767,0.0075,3442.4,3441.8,35.0]
[1736272283079,0.0075,3442.4,3441.0,1.6112]
[1736272283365,0.0075,3442.5,3441.5,3.0]
[1736272283547,0.0075,3442.3,3441.3,5.90587]
[1736272283752,2.94128761,3442.3,3441.3,5.90587]
[1736272283922,0.03624761,3442.3,3441.5,3.0]
[1736272284123,2.94127761,3442.3,3441.6,0.0075]
[1736272284686,1.5671,3441.0,3440.4,2.35281972]
[1736272284982,2.9138,3440.8,3440.4,2.35281972]
[1736272285206,2.9138,3440.8,3440.5,1.17640986]
[1736272285207,3.46396,3440.6,3440.5,1.17640986]
[1736272285409,5.12810761,3440.6,3440.5,1.17640986]
[1736272285619,5.17163383,3440.6,3440.5,1.17640986]
[1736272285909,4.62163383,3440.6,3440.5,9.86e-06]
[1736272286206,1.71517383,3440.6,3440.5,9.86e-06]
[1736272286405,0.04352622,3440.6,3440.5,5.90655986]
[1736272286715,1.165929,3441.2,3441.1,5.91354]
[1736272286861,1.173429,3441.2,3441.1,5.91354]
[1736272287061,1.21210299,3441.2,3441.1,5.91354]
[1736272287599,1.21210299,3441.2,3441.1,6.954517]
[1736272287804,0.0075,3441.2,3441.1,6.954517]
[1736272288302,1.6257,3442.4,3442.0,0.0075]
[1736272288505,1.6257,3443.0,3442.0,0.03655138]
[1736272288706,0.02874761,3442.9,3442.1,0.0075]
[1736272288911,0.0075,3442.8,3442.5,0.0075]
[1736272289116,0.0075,3442.8,3442.5,2.91233]
[1736272289297,0.0075,3442.8,3442.5,0.0075]
[1736272289463,0.0075,3442.8,3442.2,0.0075]
[1736272289872,1.6257,3443.0,3442.2,0.0075]
[1736272289873,1.6257,3443.0,3442.8,0.0075]
[1736272290066,0.0075,3443.3,3442.8,0.0075]
[1736272290273,1.6257,3443.5,3443.3,0.0075]
[1736272290567,0.0075,3443.4,3443.3,0.0075]
[1736272290765,0.0075,3443.4,3442.9,0.0075]
[1736272291206,0.0075,3443.8,3443.2,0.0075]
[1736272291617,1.165929,3444.3,3443.4,0.0075]
[1736272291760,0.02874761,3444.2,3443.0,1.6567]
[1736272291960,0.02874761,3444.2,3442.1,3.78029064]
[1736272291961,0.0075,3444.1,3442.1,3.78029064]
[1736272292181,0.0075,3443.9,3442.8,2.90453]
[1736272292376,1.6532,3443.7,3442.9,3.0]
[1736272292583,0.0075,3443.5,3442.9,3.0]
[1736272292878,0.0075,3443.5,3442.7,3.0]
[1736272293193,2.90446,3443.0,3441.7,1.6426]
[1736272293377,1.5086,3442.8,3441.2,3.40721479]
[1736272293560,0.02874761,3442.7,3441.2,3.40721479]
[1736272293912,0.02874761,3442.7,3441.6,2.90561]
[1736272294107,2.93343761,3442.7,3441.6,2.90561]
[1736272294317,2.93343761,3442.7,3441.2,4.67056479]
[1736272294318,0.04121468,3442.6,3441.8,0.0075]
[1736272294608,0.04121468,3442.6,3441.8,2.90545]
[1736272294965,0.04121468,3442.6,3441.9,0.0075]
[1736272295174,2.90507,3442.3,3441.0,2.90605]
[1736272295462,1.5555,3442.1,3441.3,2.90587]
[1736272295695,0.02874761,3442.0,3441.3,2.90587]
[1736272296012,0.04121468,3441.9,3441.4,0.02905758]
[1736272296162,1.6657,3442.6,3441.9,3.0075]
[1736272296365,1.6657,3443.6,3442.1,0.0075]
[1736272296622,0.02874761,3443.5,3442.1,0.0075]
[1736272297105,0.02874761,3443.5,3441.8,0.0365493]
[1736272297106,0.57874761,3443.5,3441.8,0.0365493]
[1736272297406,2.90419,3443.3,3441.9,0.0075]
[1736272297623,0.02874761,3443.2,3442.3,2.90502]
[1736272297819,1.6657,3443.6,3442.7,0.0075]
[1736272297962,0.02874761,3443.5,3443.0,0.0075]
[1736272298617,0.02874761,3443.5,3441.7,1.6552]
[1736272298921,2.90431,3443.2,3441.9,2.90529]
[1736272299223,0.02874761,3443.1,3442.2,0.0075]
[1736272299925,0.02874761,3443.1,3442.3,0.0075]
[1736272300233,0.02874761,3443.3,3442.3,0.0075]
[1736272300431,0.55,3443.0,3441.1,1.6541]
[1736272300726,0.02874761,3442.9,3441.5,0.0075]
[1736272301130,2.90474,3442.7,3441.5,5.9132]
[1736272301274,0.02874761,3442.6,3441.5,5.9132]
[1736272301477,2.90278,3442.6,3441.5,5.9132]
[1736272301722,0.02874761,3442.5,3441.5,5.9132]
[1736272301919,0.02874761,3442.5,3441.1,1.6541]
[1736272302127,1.5133,3443.2,3439.2,0.90152695]
[1736272302128,2.90556,3441.7,3440.6,2.90645]
[1736272302280,0.02874761,3441.6,3440.5,1.5928]
[1736272302479,0.04002914,3441.6,3440.9,2.91364]
[1736272302714,0.02874761,3441.9,3440.6,3.0]
[1736272302899,0.03974333,3441.5,3441.0,2.90607]
[1736272303119,0.02874761,3441.9,3441.0,2.90605]
[1736272303478,0.02874761,3441.9,3440.7,2.9063]
[1736272303479,0.03973712,3441.8,3440.7,2.9063]
[1736272303689,0.06848473,3441.8,3440.5,1.5928]
[1736272303989,1.5509,3442.4,3440.8,2.90626]
[1736272303990,0.57874761,3442.3,3440.8,2.90626]
[1736272304272,0.03972469,3441.7,3440.9,0.0075]
[1736272304483,2.9740523,3441.7,3440.5,1.5928]
[1736272304773,0.55,3441.5,3439.5,1.20953823]
[1736272305071,5.32849064,3441.6,3439.5,1.20953823]
[1736272305072,2.90621,3441.0,3439.5,1.20953823]
[1736272305227,0.55,3441.3,3439.9,2.90703]
[1736272305228,0.02874761,3440.9,3439.9,2.90703]
[1736272305434,0.02874761,3440.9,3440.0,2.90695]
[1736272305667,0.03963769,3440.8,3439.5,1.20953823]
[1736272305875,0.03963769,3440.8,3439.7,3.0]
[1736272306080,0.03963769,3440.8,3440.1,0.0075]
[1736272306228,0.02874761,3441.5,3440.3,0.0075]
[1736272306429,0.03685944,3440.7,3440.5,2.90654]
[1736272306663,0.02874761,3441.5,3440.9,0.0075]
[1736272307131,0.02874761,3441.5,3439.8,2.90706]
[1736272307334,2.90589,3441.3,3440.1,2.90681]
[1736272307530,0.02874761,3441.2,3440.2,2.91423]
[1736272308193,0.02874761,3441.2,3440.0,2.91439]
[1736272308194,2.93472761,3441.2,3440.0,2.91439]
[1736272308494,2.93472761,3441.2,3440.2,2.90678]
[1736272308495,0.02874761,3441.2,3440.2,2.90678]
[1736272308667,0.02874761,3441.2,3439.9,2.90701]
[1736272308865,4.30639659,3441.0,3438.8,1.5148]
[1736272309070,0.02874761,3440.9,3439.1,2.90766]
[1736272309272,0.02874761,3441.0,3439.2,0.02906898]
[1736272309474,0.03685944,3440.8,3440.6,0.0075]
[1736272309761,1.5914,3441.6,3440.9,0.0075]
[1736272310002,0.06560705,3441.5,3440.9,0.0075]
[1736272310220,0.55,3441.4,3440.6,0.0075]
[1736272310419,0.02874761,3441.4,3440.2,0.02906684]
[1736272310698,0.02874761,3441.4,3440.1,1.5529]
[1736272310699,0.02874761,3441.4,3440.4,0.0075]
[1736272310893,0.02874761,3441.4,3440.4,3.0075]
[1736272311098,0.03685944,3441.3,3440.6,0.0075]
[1736272311430,0.02874761,3441.2,3440.7,2.90635]
[1736272311597,0.03685944,3441.2,3440.8,0.0075]
[1736272311778,0.02874761,3441.5,3440.8,0.0075]
[1736272312166,0.02874761,3441.5,3440.6,2.91394]
[1736272312584,0.03705851,3441.4,3440.6,2.91394]
[1736272312799,0.03705851,3441.4,3440.2,2.90676]
[1736272312800,0.02874761,3441.3,3440.8,0.0075]
[1736272313185,0.03705851,3441.2,3440.8,0.0075]
[1736272313497,0.02874761,3441.3,3440.8,0.0075]
[1736272313697,0.03579401,3441.1,3440.9,0.0075]
[1736272313913,0.03594978,3441.2,3441.1,2.91354]
[1736272314083,1.5914,3441.6,3441.2,2.91345]
[1736272314453,0.03594978,3441.5,3441.4,2.91328]
[1736272314650,0.02874761,3442.1,3440.9,2.90621]
[1736272314850,1.6495,3442.2,3442.1,2.9052]
[1736272315091,1.20980789,3442.6,3441.7,0.0075]
[1736272315352,1.20980789,3442.6,3442.5,2.91236]
[1736272315590,1.20980789,3443.2,3442.9,0.0075]
[1736272315778,1.2385555,3443.2,3442.2,0.0075]
[1736272315970,1.20980789,3443.2,3442.9,0.0075]
[1736272316173,1.20980789,3443.2,3443.1,0.0075]
[1736272316499,2.86250789,3443.2,3443.1,0.0075]
[1736272316801,2.86250789,3443.2,3442.4,2.90494]
[1736272317102,0.02874761,3443.1,3442.5,0.0075]
[1736272317261,1.5879,3442.6,3441.0,4.43792]
[1736272317460,2.90503,3442.3,3442.2,1.20980789]
[1736272317703,0.02874761,3442.5,3442.2,1.20980789]
[1736272318197,0.02874761,3442.5,3442.3,0.0075]
[1736272318405,0.02874761,3442.5,3442.2,1.20980789]
[1736272318556,0.02874761,3442.5,3441.0,1.5318]
[1736272318756,0.02874761,3442.5,3441.7,2.90551]
[1736272319022,0.02874761,3442.5,3441.5,0.0075]
[1736272319205,0.02874761,3443.0,3441.6,0.0075]
[1736272319503,2.90469,3442.8,3441.6,3.0]
[1736272319659,0.02874761,3442.7,3441.5,2.90568]
[1736272319856,2.90467,3442.8,3441.6,2.91311]
[1736272320175,0.03732487,3442.7,3442.1,3.0075]
[1736272320497,0.02874761,3443.0,3441.9,2.90536]
[1736272320701,0.03615359,3442.6,3441.9,2.90536]
[1736272320860,2.90465,3442.8,3441.2,4.11570789]
[1736272321058,0.57874761,3443.0,3441.3,4.11566789]
[1736272321059,0.03615359,3442.5,3441.3,4.11566789]
[1736272321303,0.03615359,3442.5,3442.2,0.0075]
[1736272321596,0.02874761,3442.9,3442.2,2.91257]
[1736272321897,1.5141,3443.1,3442.3,2.91253]
[1736272321898,0.03614114,3442.4,3442.3,2.91253]
[1736272322107,0.02874761,3443.0,3442.4,0.0075]
[1736272322762,4.20980789,3444.3,3442.8,2.91211]
[1736272322763,0.03394597,3442.9,3442.8,2.91211]
[1736272322963,0.02874761,3443.5,3442.5,2.93382355]
[1736272323169,1.5974,3443.4,3441.6,1.20980789]
[1736272323392,0.57874761,3443.3,3441.6,1.20980789]
[1736272323593,0.61288691,3443.3,3441.9,2.90535]
[1736272323795,0.06288691,3443.3,3442.3,2.90499]
[1736272324011,0.0341393,3443.3,3442.4,0.03654695]
[1736272324308,0.02874761,3443.3,3442.7,3.0]
[1736272324514,1.5974,3443.4,3442.7,3.0]
[1736272324805,0.0341393,3443.3,3442.8,0.0075]
[1736272325167,1.20980789,3443.9,3443.1,0.0075]
[1736272325397,0.02874761,3443.8,3443.1,0.0075]
[1736272325598,0.06288691,3443.8,3443.1,0.0075]
[1736272325796,0.06288691,3443.8,3442.3,1.81460406]
[1736272325797,0.06288691,3443.8,3442.3,4.71955406]
[1736272326007,0.06288691,3443.8,3442.6,0.0075]
[1736272326008,0.0341393,3443.8,3442.6,0.0075]
[1736272326224,2.90338,3444.3,3442.7,2.90469]
[1736272326548,0.0341393,3443.7,3442.1,1.20980789]
[1736272326683,0.02874761,3444.0,3442.2,0.02904603]
[1736272326862,0.0341393,3443.6,3442.5,2.90478]
[1736272327067,0.02874761,3444.5,3442.2,1.2388535]
[1736272327381,0.55,3443.4,3442.2,1.20980789]
[1736272327711,0.06288691,3443.3,3442.2,1.20980789]
[1736272327910,1.6379,3443.2,3442.2,1.20980789]
[1736272328219,0.02874761,3443.1,3442.3,0.0075]
[1736272328572,0.06288691,3443.1,3442.3,0.0075]
[1736272328772,0.06288691,3443.1,3442.0,0.0075]
[1736272329183,0.06288691,3443.1,3442.2,0.0075]
[1736272329386,0.06288691,3443.1,3442.2,0.60242499]
[1736272329585,0.06288691,3443.1,3442.3,2.90497]
[1736272329766,0.06288691,3443.1,3442.1,2.90517]
[1736272329982,2.90453,3442.9,3441.6,2.90561]
[1736272330185,1.6453,3442.7,3441.1,1.81471183]
[1736272330402,2.9053,3442.0,3441.1,1.81471183]
[1736272330717,2.9053,3442.0,3441.0,2.41961578]
[1736272330718,0.55,3441.7,3441.2,1.20980789]
[1736272331014,7.02559659,3442.1,3441.2,1.20980789]
[1736272331015,2.1953,3441.5,3441.2,1.20980789]
[1736272331211,3.45587,3441.3,3441.2,1.20980789]
[1736272331415,0.02874761,3441.4,3441.2,1.20980789]
[1736272331566,0.03244561,3441.3,3441.2,1.20980789]
[1736272331767,1.6453,3441.5,3441.2,1.20980789]
[1736272331973,1.6453,3441.5,3441.0,1.81471183]
[1736272331974,0.03135524,3441.4,3441.3,0.0075]
[1736272332470,0.03135524,3441.4,3440.6,1.5901]
[1736272332773,2.90588,3441.3,3440.2,5.90678]
[1736272332972,7.21159659,3442.1,3440.0,4.30255895]
[1736272332973,1.5107,3441.1,3440.0,4.30255895]
[1736272333191,0.02874761,3441.0,3440.0,2.71245895]
[1736272333484,0.03144258,3440.9,3440.0,2.71245895]
[1736272334103,0.03144258,3440.9,3440.0,3.0]
[1736272334506,0.03144258,3440.9,3440.1,0.0075]
[1736272334894,2.90648,3440.6,3439.5,3.90966762]
[1736272335207,0.05994062,3440.5,3439.5,1.00233762]
[1736272335425,0.02874761,3440.5,3439.6,3.0]
[1736272335651,0.03119301,3440.4,3439.7,0.0075]
[1736272335951,0.03119301,3440.4,3439.4,3.0]
[1736272336111,2.93784301,3440.4,3439.4,2.90747]
[1736272336311,0.02874761,3440.3,3439.4,2.90747]
[1736272336516,0.05994062,3440.3,3439.5,0.0075]
[1736272337026,2.90656,3440.5,3439.5,0.0075]
[1736272337237,1.5499,3440.1,3438.8,0.50105337]
[1736272337439,2.90733,3439.6,3438.5,4.72290183]
[1736272337742,1.5499,3439.4,3438.6,1.20980789]
[1736272337951,2.93632761,3439.3,3438.6,1.20980789]
[1736272338128,2.90795,3438.9,3438.6,1.20980789]
[1736272338323,0.02874761,3438.8,3438.6,1.20980789]
[1736272338526,4.43297,3438.7,3438.6,1.20980789]
[1736272339077,4.46169133,3438.7,3438.6,1.20980789]
[1736272339949,4.46169133,3438.7,3437.4,2.90916]
[1736272340263,4.46169133,3438.7,3437.5,0.02908908]
[1736272340264,0.02872133,3438.7,3437.5,0.02908908]
[1736272340461,2.90778,3439.1,3437.9,3.0]
[1736272340755,0.02872133,3438.6,3437.9,3.0]
[1736272340956,0.02874761,3438.8,3438.0,0.0075]
[1736272341161,0.0278532,3438.5,3438.0,0.0075]
[1736272341458,0.0278532,3438.4,3437.3,2.90923]
[1736272341671,0.05660081,3438.4,3436.9,4.47396]
[1736272341876,0.05660081,3438.4,3437.0,0.53455126]
[1736272342165,0.02874761,3438.5,3438.0,0.0075]
[1736272342533,0.02780947,3438.4,3438.0,0.0075]
[1736272342920,0.02780947,3438.4,3438.1,0.0075]
[1736272343127,0.02780947,3438.4,3438.3,2.90841]
[1736272343327,0.02874761,3438.9,3438.4,0.0075]
[1736272344567,0.02874761,3438.9,3438.2,0.0075]
[1736272344721,0.57874761,3438.9,3437.2,2.9093]
[1736272344924,2.90862,3438.1,3436.9,4.47395]
[1736272345124,6.66461659,3438.6,3436.4,2.90997]
[1736272345125,1.6382,3437.9,3436.4,1.6384]
[1736272345369,2.90901,3437.6,3436.5,2.90992]
[1736272345686,1.6382,3437.9,3436.4,1.6384]
[1736272345687,0.02874761,3437.5,3436.6,2.90985]
[1736272345840,0.02874761,3437.5,3436.7,0.59569314]
[1736272346044,0.02874761,3437.8,3436.8,0.0075]
[1736272346246,1.66694761,3437.9,3436.7,0.62478878]
[1736272346539,0.02874761,3437.8,3437.1,0.0075]
[1736272347084,0.02874761,3437.8,3436.7,2.90976]
[1736272347085,2.90897,3437.7,3436.7,2.90976]
[1736272347285,1.6382,3437.9,3436.7,2.90976]
[1736272347286,1.6382,3437.9,3436.7,0.290976]
[1736272347497,4.57570761,3437.9,3436.9,2.90952]
[1736272347657,1.66694761,3437.9,3437.3,0.0075]
[1736272347849,1.6382,3437.9,3437.3,0.0075]
[1736272348185,0.02874761,3437.8,3437.3,0.0075]
[1736272348391,0.02674761,3437.8,3437.1,0.0075]
[1736272348576,0.02674761,3437.8,3436.5,3.0]
[1736272348890,0.02674761,3437.8,3436.7,0.0075]
[1736272349151,1.6382,3437.9,3437.2,0.0075]
[1736272349305,0.02674761,3437.8,3437.2,0.0075]
[1736272349659,0.02674761,3438.1,3437.2,0.0075]
[1736272349858,0.02598807,3437.7,3436.8,0.0075]
[1736272350101,0.02674761,3438.4,3437.5,0.0075]
[1736272350309,0.02598807,3437.6,3437.5,0.0075]
[1736272350515,0.02674761,3438.4,3437.5,0.0075]
[1736272350668,0.02674761,3438.4,3437.6,0.0075]
[1736272350862,0.02603811,3438.3,3437.6,0.0075]
[1736272351058,0.02603811,3438.3,3437.9,0.0075]
[1736272351663,0.02603811,3438.3,3437.1,2.90942]
[1736272352010,2.90874,3438.0,3436.9,3.21028]
[1736272352212,2.93551761,3437.9,3436.7,2.90974]
[1736272352413,0.02674761,3437.9,3437.2,0.0075]
[1736272352561,2.90867,3438.0,3436.8,0.02909197]
[1736272352919,0.02674761,3437.9,3437.0,0.0075]
[1736272353121,0.05302337,3437.9,3436.1,3.0]
[1736272353321,0.0075,3437.0,3436.0,2.91034]
[1736272353482,0.0075,3437.0,3435.8,1.5502]
[1736272353483,0.03424761,3437.0,3436.1,0.0290996]
[1736272353676,0.03424761,3437.0,3435.8,1.5502]
[1736272353877,0.0075,3437.0,3436.0,2.91031]
[1736272354143,0.5575,3437.0,3435.5,2.91072]